fUSD/lending_fUSD_20241009
["ID","MTS","AMOUNT","RATE_DAILY","PERIOD"]
[340088197,1728498643457,-150.0,0.000108,2]
[340088198,1728498643469,-150.0,0.00010809,2]
[340088199,1728498643478,-150.0,0.00010819,2]
[340088200,1728498643487,-150.0,0.00010822,2]
[340088201,1728498643496,-150.0,0.00010827,2]
[340088202,1728498643504,-150.0,0.00010833,2]
[340088203,1728498643513,-5.20244559,0.00010836,2]
[340088204,1728498643561,-150.0,0.00010757,2]
[340088205,1728498643571,-150.0,0.0001076,2]
[340088206,1728498643580,-46.31931832,0.00010836,2]
[340088207,1728498643591,-98.47823609,0.00010836,2]
[340088208,1728498643600,-150.0,0.0001084,2]
[340088209,1728498643609,-150.0,0.00010848,2]
[340088210,1728498643618,-150.0,0.00010849,2]
[340088211,1728498643627,-150.0,0.00010858,2]
[340088212,1728498643636,-150.0,0.00010858,2]
[340088213,1728498643645,-150.0,0.0001086,2]
[340088214,1728498643654,-150.0,0.00010863,2]
[340088215,1728498643663,-150.0,0.00010866,2]
[340088216,1728498643672,-150.0,0.0001087,2]
[340088217,1728498643682,-150.0,0.00010874,2]
[340088218,1728498643691,-150.0,0.00010882,2]
[340088219,1728498643699,-150.0,0.00010885,2]
[340088220,1728498643708,-150.0,0.00010887,2]
[340088221,1728498643717,-150.0,0.0001089,2]
[340088222,1728498643726,-150.0,0.00010892,2]
[340088223,1728498643735,-150.0,0.00010897,2]
[340088224,1728498643744,-150.0,0.00010898,2]
[340088225,1728498643753,-150.0,0.000109,2]
[340088226,1728498643762,-150.0,0.000109,2]
[340088227,1728498643771,-150.0,0.00010906,2]
[340088228,1728498643783,-150.0,0.00010914,2]
[340088229,1728498643792,-150.0,0.00010937,2]
[340088230,1728498643801,-150.0,0.00010938,2]
[340088231,1728498643810,-150.0,0.00010939,2]
[340088232,1728498643820,-150.0,0.0001094,2]
[340088233,1728498643829,-150.0,0.00010941,2]
[340088234,1728498643838,-150.0,0.00010944,2]
[340088235,1728498643847,-150.0,0.00010947,2]
[340088236,1728498643855,-150.0,0.00010954,2]
[340088237,1728498643864,-150.0,0.00010959,2]
[340088238,1728498643874,-150.0,0.0001096,2]
[340088239,1728498643882,-150.0,0.00010965,2]
[340088240,1728498643891,-150.0,0.00010969,2]
[340088241,1728498643901,-150.0,0.0001097,2]
[340088242,1728498643910,-150.0,0.00010985,2]
[340088243,1728498643919,-150.0,0.00010989,2]
[340088244,1728498643928,-150.0,0.0001099,2]
[340088245,1728498643937,-150.0,0.00010991,2]
[340088246,1728498643946,-150.0,0.00010993,2]
[340088247,1728498643955,-150.0,0.00010994,2]
[340088248,1728498643964,-150.0,0.00010997,2]
[340088249,1728498643973,-175945.96115352,0.00011,2]
[340088250,1728498644008,-150.0,0.0001082,2]
[340088251,1728498644017,-150.0,0.00010898,2]
[340088252,1728498644026,-930.7295,0.00011,2]
[340088253,1728498644058,-150.0,0.00010749,2]
[340088254,1728498644067,-150.0,0.00010896,2]
[340088255,1728498644076,-93.80347251,0.00011,2]
[340088256,1728498644093,-150.0,0.00010877,2]
[340088257,1728498644102,-465.8,0.00011,2]
[340088261,1728498646213,-150.0,0.00010731,2]
[340088262,1728498646223,-150.0,0.00010735,2]
[340088263,1728498646234,-150.0,0.00010749,2]
[340088264,1728498646244,-150.0,0.00010751,2]
[340088265,1728498646253,-150.0,0.00010788,2]
[340088266,1728498646262,-150.0,0.0001079,2]
[340088267,1728498646274,-150.0,0.00010793,2]
[340088268,1728498646284,-150.0,0.00010801,2]
[340088269,1728498646293,-150.0,0.00010807,2]
[340088270,1728498646302,-150.0,0.0001081,2]
[340088271,1728498646312,-150.0,0.00010812,2]
[340088272,1728498646322,-150.0,0.00010821,2]
[340088273,1728498646331,-150.0,0.00010836,2]
[340088274,1728498646340,-186.05790865,0.00010852,2]
[340088275,1728498646349,-150.0,0.0001086,2]
[340088276,1728498646357,-150.0,0.00010861,2]
[340088277,1728498646367,-150.0,0.00010874,2]
[340088278,1728498646376,-150.0,0.00010885,2]
[340088279,1728498646388,-150.0,0.00010887,2]
[340088280,1728498646397,-150.0,0.000109,2]
[340088281,1728498646406,-150.0,0.00010902,2]
[340088282,1728498646415,-150.0,0.00010933,2]
[340088283,1728498646426,-150.0,0.00010941,2]
[340088284,1728498646435,-150.0,0.00010956,2]
[340088285,1728498646445,-150.0,0.00010972,2]
[340088286,1728498646454,-150.0,0.00010982,2]
[340088287,1728498646465,-150.0,0.00010993,2]
[340088288,1728498646477,-727.0,0.00011,2]
[340088289,1728498646486,-4178.87092674,0.00011,2]
[340088292,1728498646756,-1557.08253744,0.00011,2]
[340088293,1728498646768,-7380.9,0.00011,2]
[340088294,1728498646778,-1231.17,0.00011,2]
[340088295,1728498646789,-986.162708,0.00011,2]
[340088296,1728498646874,-492.4,0.00011,2]
[340088297,1728498646885,-6168.83112,0.00011,2]
[340088298,1728498646907,-14050.0,0.00011,2]
[340088299,1728498657499,5779.0,0.000102,5]
[340088300,1728498683052,3757.94,9.813e-05,2]
[340088302,1728498740603,6066.2719035,0.0001,2]
[340088303,1728498757534,250.0,9.875e-05,2]
[340088304,1728498789252,367.86500025,0.000138,3]
[340088305,1728498889948,737.6,9.813e-05,2]
[340088306,1728498929490,230.33,9.813e-05,2]
[340088307,1728498962888,707.0,8.219e-05,2]
[340088308,1728499046698,250.0,9.813e-05,2]
[340088309,1728499054229,548.85573245,0.000215,90]
[340088310,1728499077775,269.15,9.813e-05,2]
[340088311,1728499568377,671.65,8.555e-05,2]
[340088342,1728499832551,-230.33,0.00010382,2]
[340088343,1728499832561,-288.73,0.00010389,2]
[340088344,1728499832570,-116.7226,0.00010394,2]
[340088345,1728499832582,-133.2774,0.00010394,2]
[340088346,1728499832592,-481.8326,0.00010497,2]
[340088347,1728499832603,-494.691349,0.00010497,2]
[340088352,1728499838467,-23.476051,0.00010497,2]
[340088353,1728499838478,-1000.0,0.000107,2]
[340088354,1728499838487,-300.0,0.00010779,2]
[340088355,1728499838497,-8484.323949,0.0001078,2]
[340088356,1728499838508,-327.698,0.0001078,2]
[340088359,1728499838520,-7203.694351,0.0001078,2]
[340088360,1728499838529,-671.65,0.00010819,2]
[340088362,1728499838538,-499.99,0.00010819,2]
[340088364,1728499838688,-150.0,0.00010899,2]
[340088365,1728499838697,-3386.27557811,0.000109,2]
[340088366,1728499838707,-4522.2867,0.000109,2]
[340088367,1728499838716,-373.97,0.000109,2]
[340088368,1728499838725,-468.0107,0.000109,2]
[340088369,1728499838736,-173.9643,0.000109,2]
[340088370,1728499838745,-10214.2993,0.000109,2]
[340088371,1728499838754,-3046.3590709,0.000109,2]
[340088372,1728499838781,-213.02933156,0.000109,2]
[340088373,1728499838790,-165.451,0.00010902,2]
[340088374,1728499838799,-298.689,0.00010914,2]
[340088375,1728499838808,-162.13,0.00010959,2]
[340088376,1728499838817,-250.0,0.00010959,2]
[340088377,1728499838826,-390.16,0.00010959,2]
[340088378,1728499838835,-250.0,0.00010959,2]
[340088379,1728499838844,-160.97,0.00010959,2]
[340088380,1728499838853,-500.0,0.00010973,2]
[340088381,1728499838863,-365.52455837,0.00010999,2]
[340088382,1728499838878,-657.0,0.00011,2]
[340088383,1728499838887,-532933.46541052,0.00011,2]
[340088384,1728499838899,-693.29470197,0.00011,2]
[340088385,1728499838910,-594.21859413,0.00011,2]
[340088386,1728499838922,-2002.45076598,0.00011,2]
[340088387,1728499838933,-1323.31540208,0.00011,2]
[340088388,1728499838945,-280.09815303,0.00011,2]
[340088391,1728499840453,-267.0,0.0001033,2]
[340088392,1728499840462,-11949.80403287,0.00011,2]
[340088393,1728499840473,-6947.57664218,0.00011,2]
[340088394,1728499840486,-1844.94999997,0.00011,2]
[340088395,1728499840497,-6699.04999996,0.00011,2]
[340088396,1728499840507,-295.2679983,0.00011,2]
[340088397,1728499840519,-1736.41306025,0.00011,2]
[340088398,1728499840529,-2616.92533353,0.00011,2]
[340088399,1728499840541,-223993.97608023,0.00011,2]
[340088400,1728499840552,-146055.55464657,0.00011,2]
[340088401,1728499840561,-12345.01217071,0.00011,2]
[340088402,1728499840572,-153676.5733211,0.00011,2]
[340088403,1728499840583,-320.91406874,0.00011,2]
[340088404,1728499840594,-198861.46251887,0.00011,2]
[340088405,1728499840603,-25158.24279716,0.00011,2]
[340088406,1728499840614,-510.01153436,0.00011,2]
[340088407,1728499840625,-1015.75187423,0.00011,2]
[340088408,1728499840636,-615.21,0.00011,2]
[340088409,1728499840647,-1327.77789827,0.00011,2]
[340088410,1728499840658,-639.318,0.00011,2]
[340088411,1728499840672,-6367.9,0.00011,2]
[340088412,1728499840684,-8257.1865332,0.00011,2]
[340088413,1728499840695,-2408.76417884,0.00011,2]
[340088414,1728499840706,-2447.98619997,0.00011,2]
[340088415,1728499840717,-760.74789201,0.00011,2]
[340088416,1728499840729,-237719.24075092,0.00011,2]
[340088417,1728499840740,-2480.88,0.00011,2]
[340088418,1728499840751,-6206.0,0.00011,2]
[340088419,1728499840761,-17773.46864637,0.00011,2]
[340088420,1728499840772,-560.0563458,0.00011,2]
[340088421,1728499840783,-3422.0802614,0.00011,2]
[340088422,1728499840793,-4786.36046934,0.00011,2]
[340088423,1728499840805,-3198.49104601,0.00011,2]
[340088424,1728499840815,-4617.91216045,0.00011,2]
[340088425,1728499840826,-3162.60000008,0.00011,2]
[340088426,1728499840844,-1561.56173644,0.00011,2]
[340088427,1728499840855,-9117.20490943,0.00011,2]
[340088428,1728499840879,-835.71347657,0.00011,2]
[340088429,1728499840890,-24704.93830315,0.00011,2]
[340088430,1728499840902,-256.62236691,0.00011,2]
[340088431,1728499840917,-353.59275053,0.00011,2]
[340088432,1728499840927,-45000.0,0.00011,2]
[340088442,1728499843399,-587.0,0.00011,2]
[340088444,1728499843408,-181607.43938961,0.00011,2]
[340088449,1728499843520,-1839.99,0.00011,2]
[340088451,1728499843532,-402.09063641,0.00011,2]
[340088454,1728499843549,-30733.86624527,0.00011,2]
[340088465,1728499843655,-446.39999929,0.00011,2]
[340088468,1728499843667,-3282.0027101,0.00011,2]
[340088470,1728499843678,-2498.76,0.00011,2]
[340088472,1728499843689,-14048.96776526,0.00011,2]
[340088474,1728499843700,-2496.9972899,0.00011,2]
[340088476,1728499843711,-46218.06484184,0.00011,2]
[340088478,1728499843722,-6172.75562889,0.00011,2]
[340088548,1728499846462,-604.15,0.00011,2]
[340088549,1728499846473,-9701.4000668,0.00011,2]
[340088550,1728499846490,-613.8,0.00011,2]
[340088551,1728499846515,-21346.04916982,0.00011,2]
[340088552,1728499846616,-4776.42775609,0.00011,2]
[340088553,1728499846627,-316.64999999,0.00011,2]
[340088554,1728499846637,-922.77,0.00011,2]
[340088555,1728499846649,-16214.5208,0.00011,2]
[340088556,1728499846719,-681.24129835,0.00011,2]
[340088557,1728499846730,-366.44579515,0.00011,2]
[340088562,1728499889803,182.12,9.004e-05,2]
[340088563,1728500279864,641.7,8.419e-05,2]
[340088565,1728500366093,154.57,0.00010218,2]
[340088566,1728500366322,154.57,0.00010226,2]
[340088567,1728500366711,154.57,0.00010233,2]
[340088568,1728500459830,23900.0,9.976e-05,2]
[340088569,1728500589969,800.0,9.964e-05,2]
[340088570,1728500718723,250.0,9.978e-05,2]
[340088571,1728500740731,229.47,9.983e-05,2]
[340088572,1728500753525,3428.02,0.00010015,2]
[340088573,1728500782474,609.61,8.219e-05,2]
[340088574,1728500844521,579.77,0.00010042,2]
[340088575,1728500850290,258.98,9.963e-05,2]
[340088576,1728500890057,478.18,0.00010021,2]
[340088577,1728500959497,23900.0,9.996e-05,2]
[340088578,1728501009611,517.2,0.00010024,2]
[340088580,1728501031545,-154.57,0.0001024,2]
[340088581,1728501031554,-154.57,0.00010247,2]
[340088582,1728501031564,-154.57,0.00010255,2]
[340088583,1728501031573,-154.57,0.00010262,2]
[340088584,1728501031582,-154.57,0.00010269,2]
[340088585,1728501031592,-344.37136038,0.00010478,2]
[340088586,1728501031603,-265.23863962,0.00010478,2]
[340088587,1728501031614,-200.0,0.00010613,2]
[340088588,1728501031623,-499.99,0.00010683,2]
[340088589,1728501031632,-683.86320354,0.00010683,2]
[340088590,1728501031643,-316.12679646,0.00010683,2]
[340088591,1728501031652,-403.29739904,0.00010799,2]
[340088592,1728501031665,-1074.32,0.00010799,2]
[340088593,1728501031676,-252.81260096,0.00010799,2]
[340088594,1728501031685,-150.0,0.00010799,2]
[340088595,1728501031695,-779.56464033,0.000108,2]
[340088596,1728501031710,-3358.39627723,0.000108,2]
[340088597,1728501031721,-397.92779334,0.000108,2]
[340088598,1728501031731,-613.0,0.000108,2]
[340088599,1728501031742,-17578.32732118,0.000108,2]
[340088600,1728501031754,-8846.42476792,0.000108,2]
[340088601,1728501031763,-340.175,0.000108,2]
[340088602,1728501031772,-7058.0264,0.000108,2]
[340088603,1728501031781,-658.0173,0.000108,2]
[340088604,1728501031790,-905.3344,0.000108,2]
[340088605,1728501031800,-332.96,0.000108,2]
[340088606,1728501031809,-387.13,0.000108,2]
[340088607,1728501031819,-500.0,0.00010873,2]
[340088608,1728501031828,-150.0,0.0001089,2]
[340088609,1728501031838,-709.21020301,0.0001089,2]
[340088610,1728501031847,-1698.5855379,0.00010898,2]
[340088611,1728501031863,-208.4144621,0.00010898,2]
[340088612,1728501031872,-156.93764396,0.00010898,2]
[340088613,1728501031883,-398.06235604,0.00010898,2]
[340088615,1728501031892,-1584.9823172,0.00010898,2]
[340088617,1728501031903,-478.59396333,0.00010898,2]
[340088619,1728501031916,-1290.42371947,0.00010898,2]
[340088621,1728501031925,-808.0,0.00010898,2]
[340088623,1728501031934,-1910.0,0.00010898,2]
[340088624,1728501031943,-3503.1162244,0.00010899,2]
[340088626,1728501031952,-226.0818,0.000109,2]
[340088628,1728501031961,-192.2023437,0.000109,2]
[340088629,1728501031972,-2586.06677235,0.000109,2]
[340088631,1728501031983,-450.037073,0.000109,2]
[340088633,1728501031993,-3569.7731183,0.000109,2]
[340088635,1728501032005,-545.44642781,0.000109,2]
[340088638,1728501032020,-1554.11028528,0.000109,2]
[340088640,1728501032031,-261.15578167,0.000109,2]
[340088642,1728501032042,-517.85068696,0.000109,2]
[340088644,1728501032053,-335.04499633,0.000109,2]
[340088646,1728501032063,-5439.96,0.000109,2]
[340088648,1728501032074,-709.73244454,0.000109,2]
[340088651,1728501032092,-3941.02759438,0.000109,2]
[340088653,1728501032103,-297.99594133,0.000109,2]
[340088655,1728501032114,-4250.50142563,0.000109,2]
[340088657,1728501032126,-6925.97810872,0.000109,2]
[340088659,1728501032135,-1753.3815637,0.000109,2]
[340088661,1728501032147,-74339.37081,0.000109,2]
[340088663,1728501032157,-53911.7550263,0.000109,2]
[340088664,1728501032168,-475.5344,0.000109,2]
[340088665,1728501032177,-40923.8637,0.000109,2]
[340088666,1728501032187,-1000.0,0.000109,2]
[340088667,1728501032195,-150.0,0.000109,2]
[340088668,1728501032205,-755.24,0.000109,2]
[340088669,1728501032215,-755.24,0.000109,2]
[340088670,1728501032224,-157.46953596,0.000109,2]
[340088671,1728501032233,-168.14858647,0.000109,2]
[340088672,1728501032242,-158.59352518,0.000109,2]
[340088673,1728501032252,-179.27909922,0.000109,2]
[340088674,1728501032263,-291.07692949,0.000109,2]
[340088675,1728501032275,-3642.80867468,0.000109,2]
[340088676,1728501032284,-13519.0,0.00010904,2]
[340088677,1728501032293,-1149.0,0.00010904,2]
[340088678,1728501032303,-248.261,0.00010904,2]
[340088679,1728501032314,-5879.0,0.00010904,2]
[340088680,1728501032322,-1083.0,0.00010904,2]
[340088681,1728501032331,-238.951,0.00010918,2]
[340088682,1728501032343,-170.37,0.00010959,2]
[340088683,1728501032352,-312.12,0.00010959,2]
[340088684,1728501032362,-500.0,0.00010959,2]
[340088685,1728501032371,-4079.03,0.00010959,2]
[340088686,1728501032380,-225.97,0.00010959,2]
[340088687,1728501032389,-188.31,0.00010959,2]
[340088688,1728501032398,-156.92,0.00010959,2]
[340088689,1728501032409,-250.0,0.00010959,2]
[340088690,1728501032418,-784.64,0.00010959,2]
[340088691,1728501032427,-162.34,0.00010959,2]
[340088692,1728501032437,-500.0,0.00010973,2]
[340088693,1728501032446,-196.88204439,0.0001099,2]
[340088694,1728501032456,-196.88204439,0.0001099,2]
[340088695,1728501032465,-196.88204439,0.0001099,2]
[340088696,1728501032474,-2772.0673814,0.00010995,2]
[340088697,1728501032484,-5824.1033048,0.00010995,2]
[340088698,1728501032493,-1212.3396512,0.00010997,2]
[340088699,1728501032503,-634.0,0.00011,2]
[340088700,1728501032513,-1366.29485456,0.00011,2]
[340088701,1728501032525,-244848.5541466,0.00011,2]
[340088702,1728501032537,-3078.55932045,0.00011,2]
[340088703,1728501032549,-2175.883476,0.00011,2]
[340088704,1728501032560,-92802.51460242,0.00011,2]
[340088705,1728501032571,-2375.16069498,0.00011,2]
[340088706,1728501032583,-2455.52727664,0.00011,2]
[340088707,1728501032595,-4598.57609927,0.00011,2]
[340088708,1728501032606,-6674.23832769,0.00011,2]
[340088709,1728501032617,-4796.58478385,0.00011,2]
[340088710,1728501032629,-2631.5279132,0.00011,2]
[340088711,1728501032640,-388.88750137,0.00011,2]
[340088712,1728501032651,-3099.91875805,0.00011,2]
[340088713,1728501032661,-368.7704374,0.00011,2]
[340088714,1728501032673,-1875.42835547,0.00011,2]
[340088718,1728501037644,-1762.399701,0.00010744,2]
[340088719,1728501037654,-500.0,0.00010994,2]
[340088720,1728501037664,-500.0,0.00010994,2]
[340088721,1728501037674,-500.0,0.00010994,2]
[340088722,1728501037683,-500.0,0.00010994,2]
[340088723,1728501037692,-337.415803,0.00010994,2]
[340088724,1728501037701,-500.0,0.00010994,2]
[340088725,1728501037710,-524.36777244,0.00010994,2]
[340088726,1728501037720,-500.0,0.00010994,2]
[340088727,1728501037729,-500.0,0.00010994,2]
[340088728,1728501037739,-500.0,0.00010994,2]
[340088729,1728501037748,-500.0,0.00010994,2]
[340088730,1728501037757,-500.0,0.00010994,2]
[340088731,1728501037767,-500.0,0.00010994,2]
[340088732,1728501037777,-500.0,0.00010994,2]
[340088733,1728501037786,-500.0,0.00010994,2]
[340088734,1728501037796,-500.0,0.00010994,2]
[340088735,1728501037806,-500.0,0.00010994,2]
[340088736,1728501037815,-500.0,0.00010994,2]
[340088737,1728501037824,-500.0,0.00010994,2]
[340088738,1728501037834,-500.0,0.00010994,2]
[340088739,1728501037843,-500.0,0.00010994,2]
[340088740,1728501037853,-575.66863034,0.00010994,2]
[340088741,1728501037862,-38935.00809322,0.00011,2]
[340088742,1728501037874,-632.85,0.00011,2]
[340088743,1728501037885,-5999.42878763,0.00011,2]
[340088744,1728501037896,-12504.31307594,0.00011,2]
[340088745,1728501037908,-6904.82972179,0.00011,2]
[340088746,1728501037920,-769.1569128,0.00011,2]
[340088747,1728501037939,-201668.69949492,0.00011,2]
[340088748,1728501037950,-898196.37438641,0.00011,2]
[340088749,1728501037962,-494.59107083,0.00011,2]
[340088750,1728501037973,-2212.02777319,0.00011,2]
[340088751,1728501037984,-3061.20815,0.00011,2]
[340088752,1728501038003,-1517.50982453,0.00011,2]
[340088753,1728501038015,-280.407,0.00011,2]
[340088754,1728501038026,-6218.1991,0.00011,2]
[340088755,1728501038038,-3525.86554151,0.00011,2]
[340088756,1728501038049,-7082.35051429,0.00011,2]
[340088757,1728501038060,-500.56436029,0.00011,2]
[340088759,1728501038071,-3692.56121159,0.00011,2]
[340088761,1728501038084,-901.71984,0.00011,2]
[340088762,1728501038095,-6124.118,0.00011,2]
[340088763,1728501038110,-1759.48135128,0.00011,2]
[340088764,1728501038122,-500.0,0.00011,2]
[340088765,1728501038133,-1833.36838384,0.00011,2]
[340088766,1728501038152,-1586.04561394,0.00011,2]
[340088767,1728501038163,-6884.76413115,0.00011,2]
[340088768,1728501038176,-1128.24841438,0.00011,2]
[340088769,1728501038192,-1600.0,0.00011,2]
[340088770,1728501038220,-575.30635287,0.00011,2]
[340088771,1728501038231,-675.54813812,0.00011,2]
[340088775,1728501039294,-456131.19358816,0.00011,2]
[340088776,1728501039306,-10441.17998013,0.00011,2]
[340088777,1728501039318,-524923.62939643,0.00011,2]
[340088778,1728501039328,-257.82237684,0.00011,2]
[340088779,1728501039339,-301.11415239,0.00011,2]
[340088780,1728501039352,-567.15440615,0.00011,2]
[340088781,1728501039367,-2111.13867946,0.00011,2]
[340088782,1728501039378,-540.19650899,0.00011,2]
[340088783,1728501039388,-1101.02903969,0.00011,2]
[340088784,1728501039399,-32234.58733742,0.00011,2]
[340088785,1728501039410,-3742.70217563,0.00011,2]
[340088786,1728501039421,-28119.1141531,0.00011,2]
[340088788,1728501039432,-1058034.74025835,0.00011,2]
[340088789,1728501039443,-1042.50479724,0.00011,2]
[340088790,1728501039454,-21049.79701956,0.00011,2]
[340088791,1728501039466,-26139.36932887,0.00011,2]
[340088792,1728501039476,-5979.78453988,0.00011,2]
[340088794,1728501039560,3076.0,0.000129,5]
[340088795,1728501039688,-500.0,0.00010973,2]
[340088796,1728501039697,-579.0,0.00011,2]
[340088797,1728501039706,-327.98951982,0.00011,2]
[340088798,1728501039832,-254.47751177,0.00011,2]
[340088799,1728501039843,-1832.83345336,0.00011,2]
[340088800,1728501039875,-61740.58683494,0.00011,2]
[340088801,1728501039886,-919.5,0.00011,2]
[340088902,1728501043728,-314.84569126,0.00011,2]
[340088903,1728501043763,-631.0,0.00011,2]
[340088904,1728501043775,-182194.43938961,0.00011,2]
[340088905,1728501043794,-1616.58999999,0.00011,2]
[340088906,1728501043805,-523.7012728,0.00011,2]
[340088907,1728501043816,-349.4192146,0.00011,2]
[340088908,1728501043835,-6110.0,0.00011,2]
[340088909,1728501043857,-1260.0,0.00011,2]
[340088910,1728501043888,-964.53685414,0.00011,2]
[340088915,1728501045548,-49346.39999999,0.00011,2]
[340088918,1728501045560,-612.635023,0.00011,2]
[340088920,1728501045571,-253.065,0.00011,2]
[340088921,1728501045582,-367.2,0.00011,2]
[340088922,1728501045685,-516.0,0.00011,2]
[340088923,1728501045694,-19321.10785248,0.00011,2]
[340088924,1728501045736,-1531.23046,0.00011,2]
[340088925,1728501045747,-4887.52182395,0.00011,2]
[340088926,1728501070707,11513.0,0.000127,5]
[340088927,1728501133528,11515.0,0.000126,5]
[340088928,1728501133779,11515.0,0.000124,3]
[340088929,1728501165417,1163.13499975,0.000126,5]
[340088930,1728501165442,10351.86500025,0.000126,5]
[340088931,1728501165665,11515.0,0.000124,3]
[340088932,1728501177471,14794.1453,0.0001014,2]
[340088933,1728501197798,11515.0,0.000125,5]
[340088934,1728501198031,11515.0,0.000123,3]
[340088935,1728501229757,5103.13499975,0.000125,5]
[340088936,1728501229780,6411.86500025,0.000125,5]
[340088937,1728501230195,11515.0,0.000123,3]
[340088938,1728501265802,11515.0,0.000124,5]
[340088939,1728501266058,11515.0,0.000122,3]
[340088940,1728501268239,250.0,9.826e-05,2]
[340088941,1728501294457,1439.23,0.00010204,2]
[340088942,1728501305223,9043.13499975,0.000123,5]
[340088943,1728501305248,2471.86500025,0.000123,5]
[340088944,1728501305485,11515.0,0.000121,3]
[340088945,1728501337647,11515.0,0.000123,5]
[340088946,1728501337877,11515.0,0.000121,3]
[340088947,1728501369969,11515.0,0.000121,5]
[340088948,1728501370216,1468.13499975,0.000119,3]
[340088949,1728501370242,10046.86500025,0.000119,3]
[340088951,1728501402358,11515.0,0.000121,5]
[340088952,1728501402611,11515.0,0.000119,3]
[340088953,1728501408577,784.21,8.219e-05,2]
[340088954,1728501435711,9797.0,0.00012,5]
[340088955,1728501509547,374.46,9.981e-05,2]
[340088956,1728501518289,22269.12,9.957e-05,2]
[340088957,1728501530829,181.63,9.785e-05,2]
[340088958,1728501620926,200.0,9.957e-05,2]
[340088959,1728501642614,640.0,9.988e-05,2]
[340088960,1728501651431,250.0,9.976e-05,2]
[340089016,1728501747689,274.34,9.984e-05,2]
[340089017,1728501781397,155.78,0.00010018,2]
[340089018,1728501782236,247.82610216,0.000101,2]
[340089019,1728501784383,250.0,0.00010018,2]
[340089020,1728501823328,719.61,9.977e-05,2]
[340089021,1728501916655,744.99,8.219e-05,2]
[340089022,1728501929211,762.24895185,0.000101,2]
[340089023,1728501954216,444.73917368,6.94e-05,2]
[340089025,1728501988362,266.43,0.00010007,2]
[340089027,1728502041445,246.25487095,0.000101,2]
[340089028,1728502041742,169.1,9.996e-05,2]
[340089029,1728502076817,150.0,0.0001,2]
[340089030,1728502114888,212.06687003,0.0001,2]
[340089031,1728502159633,236.67,0.00010016,2]
[340089032,1728502172868,488.0,0.00010049,2]
[340089038,1728502196469,250.0,0.00010049,2]
[340089049,1728502231834,-701.0,0.00010246,2]
[340089050,1728502231970,-960.77026262,0.00010246,2]
[340089077,1728502237767,-656.23573738,0.00010246,2]
[340089078,1728502237776,-1205.27225074,0.00010376,2]
[340089079,1728502237785,-744.99,0.00010476,2]
[340089080,1728502237794,-174.82,0.00010498,2]
[340089081,1728502237803,-478.72398492,0.000106,2]
[340089082,1728502237814,-158.72331508,0.000106,2]
[340089083,1728502237823,-183.04,0.00010603,2]
[340089084,1728502237834,-150.0,0.00010699,2]
[340089085,1728502237845,-154.9008,0.000107,2]
[340089086,1728502237855,-272.8281,0.000107,2]
[340089087,1728502237866,-8476.29214365,0.000107,2]
[340089088,1728502237877,-2300.18088363,0.000107,2]
[340089089,1728502237892,-2892.66187272,0.000107,2]
[340089090,1728502237902,-3336.2739,0.000107,2]
[340089091,1728502237913,-3644.1169,0.000107,2]
[340089092,1728502237923,-4203.39,0.000107,2]